bitfinex/quotes_ETHUSD_20250925
["timestamp","ask_amount","ask_price","bid_price","bid_amount"]
[1758831828038,1.34082476,3918.6,3918.5,0.248]
[1758831828264,5.02079958,3918.6,3918.5,0.6778]
[1758831829174,0.54279958,3918.6,3918.5,0.6778]
[1758831829352,4.478,3918.6,3918.5,0.002]
[1758831829548,5.02079958,3918.6,3918.5,0.002]
[1758831829748,0.86282668,3918.6,3918.5,0.002]
[1758831830071,4.478,3918.6,3918.5,0.248]
[1758831830366,5.02079958,3918.6,3918.5,0.248]
[1758831830771,5.02079958,3918.6,3918.5,0.002]
[1758831830970,7.57273139,3918.6,3918.5,0.002]
[1758831831643,5.02079958,3918.6,3918.5,0.002]
[1758831831971,6.37309459,3918.6,3918.5,0.002]
[1758831832778,6.37309459,3918.6,3918.5,0.6778]
[1758831832779,5.01979958,3918.6,3918.5,0.6778]
[1758831832948,4.477,3918.6,3918.5,0.6778]
[1758831833158,5.01979958,3918.6,3918.5,0.6778]
[1758831833488,4.477,3918.6,3918.5,0.002]
[1758831833844,5.01979958,3918.6,3918.5,0.002]
[1758831834068,5.51461467,3918.6,3918.5,0.002]
[1758831834377,6.05741425,3918.6,3918.5,0.002]
[1758831834775,6.73591372,3918.6,3918.5,0.002]
[1758831835070,9.26254606,3918.6,3918.5,0.002]
[1758831836155,10.61407657,3918.6,3918.5,0.002]
[1758831838443,9.26254606,3918.6,3918.5,0.002]
[1758831838643,24.21735006,3918.6,3918.5,0.002]
[1758831838868,23.15684606,3918.6,3918.5,0.002]
[1758831839268,0.1272,3918.5,3918.1,0.002]
[1758831839475,3.45699126,3918.2,3918.1,0.002]
[1758831839783,0.54279958,3918.2,3918.1,0.002]
[1758831840078,7.57099191,3918.2,3918.1,0.002]
[1758831840792,5.01879958,3918.2,3918.1,0.002]
[1758831841291,5.01879958,3918.2,3918.1,0.6778]
[1758831842070,0.54279958,3918.2,3918.1,0.6778]
[1758831842285,5.01879958,3918.2,3918.1,0.6778]
[1758831842648,5.01879958,3918.2,3918.1,3.23005747]
[1758831842649,0.54279958,3918.2,3918.1,3.23005747]
[1758831842854,5.69802724,3918.2,3918.1,0.6778]
[1758831843364,1.2221556,3918.2,3918.1,0.6778]
[1758831843556,5.6981556,3918.2,3918.1,3.23005747]
[1758831843752,5.6981556,3918.2,3918.1,0.002]
[1758831843957,5.01879958,3918.2,3918.1,0.002]
[1758831844153,5.6980891,3918.2,3918.1,0.2291]
[1758831844353,5.6980891,3918.2,3918.1,0.684]
[1758831844656,5.69803769,3918.2,3918.1,0.684]
[1758831845559,6.57102135,3918.2,3918.1,0.002]
[1758831845764,1.41578324,3918.2,3918.1,0.002]
[1758831845972,5.01779958,3918.2,3918.1,0.2291]
[1758831846282,5.01779958,3918.2,3918.1,0.002]
[1758831846486,5.01779958,3918.2,3918.1,0.684]
[1758831846852,5.01779958,3918.2,3918.1,0.002]
[1758831847297,7.56999191,3918.2,3918.1,0.002]
[1758831847477,9.82358926,3918.2,3918.1,0.002]
[1758831847656,9.14058926,3918.2,3918.1,0.002]
[1758831847850,4.66558926,3918.2,3918.1,0.002]
[1758831848093,2.11339693,3918.2,3918.1,0.002]
[1758831848387,5.01779958,3918.2,3918.1,0.684]
[1758831848551,0.54279958,3918.2,3918.1,0.684]
[1758831848758,5.9240772,3918.2,3918.1,0.684]
[1758831848989,5.01779958,3918.2,3918.1,0.684]
[1758831849192,5.9240772,3918.2,3918.1,0.684]
[1758831849700,5.01779958,3918.2,3918.1,0.684]
[1758831849885,5.9240772,3918.2,3918.1,0.684]
[1758831850654,9.23212643,3918.2,3918.1,0.002]
[1758831850875,10.80622483,3918.2,3918.1,0.002]
[1758831851089,2.55238775,3917.9,3917.8,1e-08]
[1758831851264,16.90642105,3917.9,3917.8,1e-08]
[1758831851596,12.64062933,3917.9,3917.8,1e-08]
[1758831851762,12.51011794,3917.9,3917.8,1e-08]
[1758831851956,19.11111794,3917.9,3917.8,1e-08]
[1758831852156,28.30067294,3917.9,3917.8,1e-08]
[1758831852356,30.23916166,3917.9,3917.8,1e-08]
[1758831852572,23.60828966,3917.9,3917.8,1e-08]
[1758831853180,23.13409166,3917.9,3917.8,1e-08]
[1758831853384,14.8228532,3917.9,3917.8,1e-08]
[1758831853671,11.69267594,3917.9,3917.8,1e-08]
[1758831854010,13.04788822,3917.9,3917.8,1e-08]
[1758831854489,13.1754431,3917.9,3917.8,1e-08]
[1758831854896,12.03713082,3917.9,3917.8,1e-08]
[1758831855096,2.5524529,3917.8,3917.7,0.002]
[1758831855395,29.16034673,3917.8,3917.7,0.002]
[1758831855567,29.84334673,3917.8,3917.7,0.002]
[1758831856294,37.08841473,3917.8,3917.7,0.002]
[1758831856598,35.99293573,3917.8,3917.7,0.002]
[1758831856968,34.10458773,3917.8,3917.7,0.002]
[1758831857175,32.67899768,3917.8,3917.7,0.002]
[1758831857374,32.17541568,3917.8,3917.7,0.002]
[1758831858291,32.17645768,3917.8,3917.7,0.002]
[1758831858683,27.70004468,3917.8,3917.7,0.002]
[1758831858886,27.03616668,3917.8,3917.7,0.002]
[1758831859273,25.19476668,3917.8,3917.7,0.002]
[1758831860169,3.34471353,3917.4,3917.3,0.002]
[1758831860362,13.16374015,3917.4,3917.3,0.002]
[1758831860600,41.77788511,3917.4,3917.3,0.002]
[1758831860795,42.41734782,3917.4,3917.3,0.002]
[1758831861294,42.41734782,3917.4,3917.0,0.002]
[1758831861295,6.34490903,3917.1,3917.0,0.002]
[1758831861495,14.1342693,3917.1,3917.0,0.002]
[1758831861669,40.1912313,3917.1,3917.0,0.002]
[1758831861866,40.1518513,3917.1,3917.0,0.002]
[1758831862076,39.7278733,3917.1,3917.0,0.002]
[1758831862399,40.7750643,3917.1,3917.0,0.002]
[1758831862569,41.8895923,3917.1,3917.0,0.002]
[1758831862775,33.1354483,3917.1,3917.0,0.002]
[1758831862995,41.7385633,3917.1,3917.0,0.002]
[1758831863201,32.7985743,3917.1,3917.0,0.002]
[1758831863401,26.6038443,3917.1,3917.0,0.002]
[1758831863887,26.5782523,3917.1,3917.0,0.002]
[1758831864081,32.5308443,3917.1,3917.0,0.002]
[1758831864398,32.9703443,3917.1,3917.0,0.002]
[1758831865175,44.8932393,3917.1,3917.0,0.002]
[1758831865377,37.5983373,3917.1,3917.0,0.002]
[1758831865600,26.6604553,3917.1,3917.0,0.002]
[1758831865802,4.4188693,3917.1,3917.0,0.6786]
[1758831866003,18.2088693,3917.1,3917.0,0.6786]
[1758831866882,16.0818693,3917.1,3917.0,0.6786]
[1758831867104,16.0818693,3917.1,3917.0,0.002]
[1758831867105,41.1035493,3917.1,3917.0,0.002]
[1758831867342,18.2088693,3917.1,3917.0,0.002]
[1758831867642,21.5138693,3917.1,3917.0,0.002]
[1758831868119,21.5394573,3917.1,3917.0,0.002]
[1758831868326,18.2088693,3917.1,3917.0,0.002]
[1758831868726,21.5501333,3917.1,3917.0,0.002]
[1758831870211,22.90045034,3917.1,3917.0,0.002]
[1758831870631,21.1399543,3917.1,3917.0,0.002]
[1758831870927,20.8820543,3917.1,3917.0,0.002]
[1758831873626,15.63237134,3917.1,3917.0,0.002]
[1758831873928,22.23237134,3917.1,3917.0,0.002]
[1758831874730,22.23137134,3917.1,3917.0,0.002]
[1758831874901,40.80069034,3917.1,3917.0,0.002]
[1758831875111,34.3805223,3917.1,3917.0,0.002]
[1758831875302,2.55316976,3916.7,3916.6,0.002]
[1758831875526,8.09031554,3916.7,3916.6,0.002]
[1758831875698,30.33059654,3916.7,3916.6,0.002]
[1758831875901,23.24445999,3916.7,3916.6,0.002]
[1758831876294,12.84923193,3916.7,3916.6,0.002]
[1758831876528,20.83123193,3916.7,3916.6,0.002]
[1758831876729,21.48763193,3916.7,3916.6,0.002]
[1758831876891,46.11143693,3916.7,3916.6,0.002]
[1758831877224,47.46543693,3916.7,3916.6,0.002]
[1758831878142,0.792,3916.1,3915.3,0.002]
[1758831878347,3.90547827,3915.5,3915.3,0.002]
[1758831878517,11.04727785,3915.5,3915.3,0.002]
[1758831878700,31.85038482,3915.5,3915.3,0.002]
[1758831878904,29.03742982,3915.5,3915.3,0.002]
[1758831879100,31.58119107,3915.5,3915.3,0.002]
[1758831879398,17.12791307,3915.5,3915.3,0.002]
[1758831879800,10.52891307,3915.5,3915.3,0.002]
[1758831880043,23.64029407,3915.5,3915.3,0.002]
[1758831880442,10.32411407,3915.5,3915.4,0.6786]
[1758831880769,9.93395182,3915.5,3915.4,0.6786]
[1758831881113,17.27955082,3915.5,3915.4,0.6786]
[1758831881309,15.43883982,3915.5,3915.4,0.002]
[1758831882751,3.33495182,3915.5,3915.4,0.002]
[1758831883048,9.93295182,3915.5,3915.4,0.6786]
[1758831883202,4.76383763,3915.5,3915.4,0.6786]
[1758831883412,9.93295182,3915.5,3915.4,0.6786]
[1758831883937,2.13309322,3915.5,3915.4,0.6786]
[1758831884124,5.01279958,3915.5,3915.4,0.6786]
[1758831884556,7.56675182,3915.5,3915.4,0.6786]
[1758831885257,3.09675182,3915.5,3915.4,0.6786]
[1758831885455,9.69475182,3915.5,3915.4,0.6786]
[1758831885859,0.54279958,3915.5,3915.4,3.23261746]
[1758831886060,0.54279958,3915.5,3915.4,0.6786]
[1758831886741,0.54279958,3915.5,3915.4,3.23261746]
[1758831887456,5.01179958,3915.5,3915.4,3.23261746]
[1758831887623,5.01179958,3915.5,3915.4,3.81404798]
[1758831888143,0.54279958,3915.5,3915.4,3.81404798]
[1758831892259,0.54279958,3915.5,3915.4,3.23261746]
[1758831895374,0.54279958,3915.5,3915.4,0.6786]
[1758831895685,0.54279958,3915.5,3915.4,0.002]
[1758831896806,0.54279958,3915.5,3915.4,0.7039]
[1758831896974,1.22037645,3915.5,3915.4,0.7039]
[1758831897172,0.54279958,3915.5,3915.4,0.7039]
[1758831897403,0.54279958,3915.5,3915.4,3.25791746]
[1758831897609,5.00879958,3915.5,3915.4,3.28345763]
[1758831897910,0.54279958,3915.5,3915.4,3.25791746]
[1758831898214,0.54279958,3915.5,3915.4,3.83932361]
[1758831899310,0.54279958,3915.6,3915.5,2.55395224]
[1758831899484,0.54279958,3915.6,3915.5,8.51385224]
[1758831899689,0.001,3915.7,3915.6,3.34588701]
[1758831899879,0.001,3915.7,3915.6,4.04778701]
[1758831900075,0.001,3915.7,3915.6,4.67732155]
[1758831900273,0.001,3915.7,3915.6,5.37922155]
[1758831901812,0.001,3915.7,3915.6,9.91322155]
[1758831901983,0.001,3915.7,3915.6,10.04042155]
[1758831902579,0.001,3915.7,3915.6,8.50642155]
[1758831902893,0.001,3915.7,3915.6,10.72078701]
[1758831903287,0.001,3915.7,3915.6,6.25578701]
[1758831903494,0.001,3915.7,3915.6,3.25418701]
[1758831903693,0.1282,3915.7,3915.6,2.80028701]
[1758831903894,0.1282,3915.7,3915.6,2.55388701]
[1758831904206,0.1282,3915.7,3915.6,3.25558701]
[1758831905611,0.1282,3915.7,3915.6,4.28590126]
[1758831906113,0.1282,3915.7,3915.6,3.25558701]
[1758831906622,0.1282,3915.7,3915.6,2.55388701]
[1758831906823,0.1282,3915.7,3915.6,2.80168701]
[1758831906985,0.1282,3915.7,3915.6,3.25558701]
[1758831907525,0.1282,3915.7,3915.6,3.28112588]
[1758831908581,0.1282,3915.7,3915.6,7.74412588]
[1758831908889,0.1282,3915.7,3915.6,7.71858701]
[1758831909090,0.1282,3915.7,3915.4,0.002]
[1758831909404,0.75935785,3915.6,3915.4,0.002]
[1758831909721,0.54245785,3915.5,3915.4,0.002]
[1758831910025,1.53847944,3915.5,3915.4,0.002]
[1758831910180,1.22875785,3915.5,3915.4,0.002]
[1758831910380,3.78271009,3915.5,3915.4,0.002]
[1758831911021,10.53502409,3915.5,3915.4,0.002]
[1758831911187,13.37540373,3915.5,3915.4,0.002]
[1758831911389,2.55401746,3915.4,3915.3,0.002]
[1758831911613,3.09647531,3915.4,3915.3,0.002]
[1758831911816,3.78277531,3915.4,3915.3,0.002]
[1758831912009,11.72850145,3915.4,3915.3,0.002]
[1758831912205,8.24477531,3915.4,3915.3,0.002]
[1758831912412,11.46298957,3915.4,3915.3,0.002]
[1758831913920,2.55421317,3915.1,3915.0,0.002]
[1758831914224,3.09667102,3915.1,3915.0,0.002]
[1758831914396,3.78297102,3915.1,3915.0,0.002]
[1758831915203,10.37297102,3915.1,3915.0,0.002]
[1758831915402,5.48470266,3915.1,3915.0,0.002]
[1758831915618,12.07470266,3915.1,3915.0,0.002]
[1758831915814,5.48470266,3915.1,3915.0,0.002]
[1758831916015,12.07370266,3915.1,3915.0,0.002]
[1758831916329,13.42746564,3915.1,3915.0,0.002]
[1758831917795,12.07370266,3915.1,3915.0,0.002]
[1758831917999,12.05420266,3915.1,3915.0,0.002]
[1758831918626,12.05283016,3915.1,3915.0,0.002]
[1758831918804,13.40659314,3915.1,3915.0,0.002]
[1758831919017,12.05283016,3915.1,3915.0,0.002]
[1758831919637,28.97781816,3915.1,3915.0,0.002]
[1758831919936,16.08013016,3915.1,3915.0,0.002]
[1758831920099,3.792,3914.6,3912.7,0.4553]
[1758831920304,0.1272,3912.7,3912.5,0.2353]
[1758831920534,4.461,3912.6,3912.2,3.01135805]
[1758831920733,0.1272,3912.2,3911.9,0.2353]
[1758831921037,2.55630045,3912.0,3911.5,0.002]
[1758831921244,2.55610653,3912.2,3911.5,0.002]
[1758831921245,4.46,3911.9,3911.5,0.002]
[1758831921428,4.96010854,3911.9,3911.5,0.002]
[1758831921601,2.55649861,3911.6,3911.5,0.002]
[1758831922006,6.8243,3911.6,3911.5,0.002]
[1758831922238,7.36538535,3911.6,3911.5,0.002]
[1758831922425,0.54108535,3911.6,3911.5,0.002]
[1758831922738,9.14649861,3911.6,3911.5,0.002]
[1758831922925,9.68758396,3911.6,3911.5,0.002]
[1758831923712,8.42901502,3911.6,3911.5,0.002]
[1758831924114,10.98551363,3911.6,3911.5,0.002]
[1758831924314,7.88792967,3911.6,3911.5,0.002]
[1758831924513,10.98168798,3911.6,3911.5,0.002]
[1758831925436,11.64848798,3911.6,3911.5,0.002]
[1758831925636,10.98168798,3911.6,3911.5,0.002]
[1758831925808,4.461,3911.6,3911.5,0.6926]
[1758831926011,0.67602138,3912.4,3911.5,0.6926]
[1758831926344,0.2353,3912.0,3911.6,3.24708984]
[1758831926638,4.461,3911.9,3911.7,0.6906]
[1758831926826,4.461,3911.8,3911.5,0.002]
[1758831927032,4.461,3911.8,3911.6,0.4553]
[1758831927341,2.66551915,3912.2,3911.7,0.6906]
[1758831927640,4.461,3912.1,3911.7,0.6906]
[1758831928322,4.461,3912.1,3911.5,0.002]
[1758831928527,0.91460437,3912.0,3911.5,0.002]
[1758831928937,0.91460437,3912.0,3911.6,0.6906]
[1758831929334,0.91460437,3912.0,3911.5,0.002]
[1758831929636,0.91460437,3912.0,3911.5,2.55854022]
[1758831929841,0.91460437,3912.0,3911.6,0.6906]
[1758831930404,1.00607194,3911.9,3911.5,0.002]
[1758831930645,4.461,3911.8,3911.5,0.4573]
[1758831930822,4.461,3911.8,3911.6,0.2353]
[1758831931742,0.1272,3911.6,3911.5,0.002]
[1758831931913,0.1272,3911.6,3911.5,3.24916397]
[1758831932443,4.5872,3911.6,3911.5,3.24916397]
[1758831933142,0.1272,3911.6,3911.5,3.24916397]
[1758831934352,4.46,3912.0,3911.9,2.55629781]
[1758831934532,4.46,3912.0,3911.5,0.6926]
[1758831934533,4.46,3912.0,3911.8,2.55635912]
[1758831934847,4.46,3912.0,3911.9,3.24690256]
[1758831935051,0.53670955,3912.3,3912.2,2.55610653]
[1758831935220,4.459,3912.3,3912.2,3.24670653]
[1758831935420,0.53670955,3912.4,3912.2,3.24670653]
[1758831935626,0.53670955,3912.4,3912.3,2.5560412]
[1758831935836,4.99570955,3912.5,3912.3,2.5560412]
[1758831936039,4.459,3912.5,3912.3,2.5560412]
[1758831936239,4.459,3912.5,3912.4,0.6906]
[1758831936440,4.99675184,3912.5,3912.4,0.6906]
[1758831936656,4.99675184,3912.5,3912.4,0.2353]
[1758831936960,0.1272,3912.4,3912.0,3.24677961]
[1758831937138,0.53775184,3912.4,3912.0,3.24677961]
[1758831937340,0.1272,3912.0,3911.6,2.79174015]
[1758831937540,0.1272,3911.8,3911.7,2.79173326]
[1758831937940,0.1272,3911.8,3911.7,3.24703326]
[1758831938824,0.1272,3911.8,3911.5,0.002]
[1758831939027,0.1272,3911.6,3911.5,0.002]
[1758831939257,0.6664279,3911.6,3911.5,2.55854663]
[1758831939825,0.6664279,3911.6,3911.5,2.79384663]
[1758831940063,0.6664279,3911.6,3911.5,2.55854663]
[1758831940767,0.6664279,3911.6,3911.5,3.24914663]
[1758831941375,0.66692984,3911.6,3911.5,3.24914663]
[1758831941971,0.66692984,3911.6,3911.5,2.79384663]
[1758831942858,0.66692984,3911.6,3911.5,3.24914663]
[1758831943261,1.34159215,3911.6,3911.5,3.24914663]
[1758831943460,1.34159215,3911.6,3911.5,2.55854663]
[1758831943856,1.34159215,3911.6,3911.5,2.79384663]
[1758831944172,1.34159215,3911.6,3911.5,3.78420023]
[1758831944341,0.66692984,3911.6,3911.5,3.78420023]
[1758831944548,0.53972984,3911.6,3911.5,4.57620023]
[1758831945375,0.67466231,3911.9,3911.8,3.34836791]
[1758831945688,0.67466231,3912.1,3912.0,2.55623721]
[1758831945888,0.67466231,3912.1,3912.0,4.70908798]
[1758831946180,0.80186231,3912.2,3912.1,2.55617187]
[1758831946356,0.1272,3912.2,3912.1,3.24677187]
[1758831946679,0.6770281,3912.4,3912.2,3.34810653]
[1758831946985,1.35204277,3912.9,3912.7,6.34777989]
[1758831946986,0.6770281,3912.9,3912.7,6.34777989]
[1758831947274,0.6770281,3913.2,3913.0,3.34758395]
[1758831947461,0.6770281,3913.2,3913.1,4.03811864]
[1758831947663,0.6770281,3913.3,3913.2,3.34745333]
[1758831947986,0.6770281,3913.3,3913.2,7.01145333]
[1758831948350,0.6770281,3913.3,3913.2,7.99125053]
[1758831948554,0.6770281,3913.3,3913.2,8.69025053]
[1758831949560,0.90136185,3913.4,3913.3,2.55538803]
[1758831949772,0.90136185,3913.5,3913.4,2.55532273]
[1758831951297,0.90136185,3913.6,3913.4,2.55532273]
[1758831951459,0.90136185,3913.6,3912.9,2.55563466]
[1758831951659,0.1272,3913.2,3912.9,2.55564926]
[1758831951877,0.1272,3912.9,3912.8,2.55571457]
[1758831952057,0.67712459,3913.1,3913.0,2.55558395]
[1758831952454,0.67712459,3913.1,3913.0,2.78658395]
[1758831952782,0.67712459,3913.2,3913.1,2.55551864]
[1758831954184,0.67712459,3913.2,3913.1,3.7656289]
[1758831954552,0.67712459,3913.2,3913.1,8.2186289]
[1758831954753,0.80432459,3913.3,3913.2,2.55545333]
[1758831954988,0.80432459,3913.3,3913.2,3.25445333]
[1758831955954,0.1272,3913.3,3913.2,3.25445333]
[1758831956282,0.1272,3913.3,3913.2,2.78645333]
[1758831957055,0.1272,3913.3,3913.2,3.25445333]
[1758831957249,0.1272,3913.3,3913.2,4.33186155]
[1758831957588,0.66867665,3913.3,3913.2,4.33186155]
[1758831959375,0.66867665,3913.3,3913.2,2.78645333]
[1758831959586,0.66867665,3913.3,3913.2,2.55545333]
[1758831959963,0.66967665,3913.3,3913.2,2.55545333]
[1758831960365,1.19187665,3913.3,3912.9,2.55559282]
[1758831960678,1.21860124,3913.2,3913.1,2.55551009]
[1758831961183,1.21860124,3913.2,3913.0,2.55556764]
[1758831961384,0.54147665,3913.1,3912.9,2.55563969]
[1758831961556,0.54147665,3913.0,3912.9,2.55563969]
[1758831965510,0.54147665,3913.0,3912.9,2.55564926]
[1758831967376,0.54147665,3913.2,3913.0,2.55557648]
[1758831967575,0.54147665,3913.1,3913.0,2.55557648]
[1758831968070,0.001,3913.3,3913.1,2.55551864]
[1758831968274,0.54227858,3913.2,3913.1,2.55551864]
[1758831969183,0.54227858,3913.2,3913.0,0.02555583]
[1758831969484,0.54227858,3913.2,3913.1,2.79421864]
[1758831969681,0.54327858,3913.3,3913.2,2.55545333]
[1758831969896,0.54327858,3913.3,3913.2,3.26705333]
[1758831969897,0.001,3913.3,3913.2,3.26705333]
[1758831970278,0.1282,3913.3,3913.2,3.26705333]
[1758831972865,0.1282,3913.3,3912.3,0.2387]
[1758831973096,0.54328721,3913.2,3912.3,0.2387]
[1758831973400,0.1272,3912.4,3911.8,3.354]
[1758831973699,0.54328721,3912.3,3912.1,2.55614512]
[1758831973900,5.1066,3912.7,3912.1,2.55614512]
[1758831973901,5.78372459,3912.7,3912.1,2.55614512]
[1758831974102,0.54343822,3912.6,3912.1,2.55614512]
[1758831974274,0.54343822,3912.5,3912.1,2.55614512]
[1758831974481,0.76033822,3912.4,3912.1,2.55614512]
[1758831974781,0.76033822,3912.4,3911.8,7.00332103]
[1758831974782,0.1272,3912.1,3912.0,2.5562173]
[1758831974979,0.2169,3912.4,3912.1,2.5561661]
[1758831975285,0.5439288,3912.3,3912.1,2.55616712]
[1758831975490,0.5439288,3912.2,3912.1,2.55616712]
[1758831975688,0.5439288,3912.2,3911.6,7.6847]
[1758831975903,0.5439288,3912.1,3911.7,2.55643326]
[1758831976102,0.5439288,3912.0,3911.8,2.55636791]
[1758831976305,0.67712459,3912.4,3911.9,0.02556302]
[1758831976502,0.54396492,3912.3,3912.2,2.55610653]
[1758831976801,0.54396492,3912.3,3912.2,2.79480653]
[1758831976976,0.54396492,3912.3,3912.2,3.26770653]
[1758831977706,0.67712459,3913.0,3912.7,2.55577989]
[1758831978000,0.54421818,3912.9,3912.8,2.55571457]
[1758831978406,0.54421818,3912.9,3912.8,3.25247171]
[1758831978611,0.001,3913.3,3913.2,2.55545333]
[1758831978807,0.54528323,3913.3,3913.1,0.02555518]
[1758831979009,0.54528323,3913.3,3912.9,2.55560465]
[1758831979010,0.54428323,3913.2,3912.8,4.445]
[1758831979314,0.54428323,3913.1,3912.9,2.55559558]
[1758831979481,0.54428323,3913.0,3912.9,2.55559558]
[1758831979812,0.54428323,3913.0,3912.8,7.00069559]
[1758831980009,0.54429303,3912.9,3912.8,7.00070885]
[1758831980312,0.54429303,3912.9,3912.8,2.55570885]
[1758831986029,0.1272,3912.8,3912.6,2.55583144]
[1758831986232,0.1272,3912.8,3911.1,2.5587905]
[1758831986233,0.1272,3912.6,3912.3,2.55598354]
[1758831986437,0.54429303,3912.5,3912.4,2.55597587]
[1758831986836,0.1272,3912.4,3912.3,2.55603362]
[1758831987034,0.54429303,3912.4,3912.3,2.55603362]
[1758831987734,0.54429303,3912.4,3912.3,2.78413362]
[1758831988122,0.54429303,3912.4,3912.3,2.55603362]
[1758831988431,0.54429303,3912.4,3912.2,2.55609185]
[1758831988637,0.54429303,3912.3,3912.2,2.55609185]
[1758831988935,0.1272,3912.2,3911.7,4.442]
[1758831989137,0.76119303,3912.3,3911.7,4.442]
[1758831989138,0.1272,3912.0,3911.7,4.442]
[1758831989436,0.2169,3912.3,3911.9,2.5562391]
[1758831989651,0.54412048,3912.2,3911.9,2.5562391]
[1758831989818,0.54412048,3912.1,3911.9,2.5562391]
[1758831990016,0.54411217,3912.0,3911.6,0.002]
[1758831990216,0.54411217,3911.9,3911.6,0.002]
[1758831990425,0.54411217,3911.8,3911.7,0.2281]
[1758831990933,0.54411217,3911.8,3911.7,2.78453326]
[1758831992238,0.54411217,3911.8,3911.6,0.002]
[1758831992537,0.54411217,3911.7,3911.6,0.002]
[1758831993240,0.76101217,3911.7,3911.6,0.002]
[1758831993464,1.65028807,3911.7,3911.6,0.002]
[1758831994019,1.20498807,3911.7,3911.6,0.002]
[1758831994959,0.98808807,3911.7,3911.6,0.002]
[1758831995320,8.17808807,3911.7,3911.6,0.002]
[1758831996772,7.73411217,3911.7,3911.6,3.22969861]
[1758831998221,7.73411217,3911.7,3911.6,0.2301]
[1758831998430,12.17511217,3911.7,3911.6,0.002]
[1758831998752,12.39201217,3911.7,3911.6,0.002]
[1758831998933,13.95456002,3911.7,3911.6,0.002]
[1758831999938,14.39986002,3911.7,3911.6,0.002]
[1758832000659,13.95456002,3911.7,3911.6,0.002]
[1758832001229,12.17511217,3911.7,3911.6,0.002]
[1758832002128,14.73154543,3911.7,3911.6,0.002]
[1758832002333,16.07087002,3911.7,3911.6,0.002]
[1758832002661,12.85223676,3911.7,3911.6,0.002]
[1758832003560,12.17511217,3911.7,3911.6,0.002]
[1758832003762,13.80610365,3911.7,3911.6,0.002]
[1758832003947,14.48322824,3911.7,3911.6,0.002]
[1758832004326,13.80610365,3911.7,3911.6,0.002]
[1758832004962,19.15473691,3911.7,3911.6,0.002]
[1758832005533,11.96473691,3911.7,3911.6,0.002]
[1758832006029,2.39200365,3911.7,3911.6,0.002]
[1758832006236,7.79111723,3911.7,3911.6,0.002]
[1758832006429,5.66111723,3911.7,3911.6,0.002]
[1758832007260,4.98211217,3911.7,3911.6,0.2301]
[1758832007757,4.98211217,3911.7,3911.6,0.002]
[1758832008273,4.98211217,3911.7,3911.6,2.55849861]
[1758832009178,0.1272,3911.7,3911.6,3.83782976]
[1758832009349,0.1272,3911.7,3911.6,3.59162976]
[1758832009555,0.1272,3911.7,3911.6,2.55849861]
[1758832009750,0.54319179,3911.8,3911.7,2.55643326]
[1758832009974,0.54319179,3912.0,3911.7,3.25693326]
[1758832010153,3.51,3912.1,3911.9,2.55630256]
[1758832010355,0.54331086,3912.0,3911.9,2.55630256]
[1758832010554,0.54331086,3912.0,3911.9,3.01060256]
[1758832011082,0.54331086,3912.0,3911.9,3.25680256]
[1758832011282,0.54331086,3912.0,3911.9,2.80250256]
[1758832011470,0.54331086,3912.0,3911.9,3.25680256]
[1758832012082,0.54331086,3912.0,3911.9,3.84088251]
[1758832014285,0.67051086,3912.0,3911.9,3.84088251]
[1758832014966,0.1272,3912.0,3911.9,3.84088251]
[1758832015354,0.54539303,3912.0,3911.9,4.63288251]
[1758832016984,0.54539303,3912.0,3911.9,3.14038251]
[1758832017156,0.54539303,3912.0,3911.9,2.55630256]
[1758832017854,0.1272,3911.9,3911.8,2.55636412]
[1758832018053,0.54439303,3911.9,3911.8,2.55636791]
[1758832018860,0.54439303,3911.9,3911.8,3.28243158]
[1758832019072,0.54439303,3911.9,3911.8,5.10211806]
[1758832019362,0.001,3912.0,3911.9,2.55630256]
[1758832019684,0.545911,3912.0,3911.9,3.25680256]
[1758832020876,0.001,3912.0,3911.9,3.25680256]
[1758832021272,0.001,3912.0,3911.9,7.07436558]
[1758832021488,0.001,3912.0,3911.9,8.00925925]
[1758832021702,0.001,3912.0,3911.9,9.54625925]
[1758832021906,0.001,3912.0,3911.9,9.67345925]
[1758832022371,0.001,3912.0,3911.9,11.80345925]
[1758832023562,0.001,3912.0,3911.9,8.13645925]
[1758832023706,0.001,3912.0,3911.9,9.98830256]
[1758832024569,0.001,3912.0,3911.9,10.23680256]
[1758832025516,0.001,3912.0,3911.9,10.70220256]
[1758832025719,0.001,3912.0,3911.9,9.98830256]
[1758832026300,0.001,3912.0,3911.9,2.55630256]
[1758832028512,0.001,3912.0,3911.9,2.80480256]
[1758832028707,0.001,3912.0,3911.9,3.58482239]
[1758832028912,0.001,3912.0,3911.9,4.29872239]
[1758832029931,0.001,3912.0,3911.9,4.32428541]
[1758832031395,0.001,3912.0,3911.9,3.58482239]
[1758832031631,0.001,3912.0,3911.9,2.58186558]
[1758832032133,0.001,3912.0,3911.9,2.83036558]
[1758832032529,0.001,3912.0,3911.9,3.29576558]
[1758832033231,0.001,3912.0,3911.9,7.25936558]
[1758832033530,0.001,3912.0,3911.9,7.23380256]
[1758832033712,0.001,3912.0,3911.9,6.98530256]
[1758832033901,0.001,3912.0,3911.9,7.23380256]
[1758832034227,0.001,3912.0,3911.9,7.69920256]
[1758832034445,0.001,3912.0,3911.9,8.73768603]
[1758832035299,0.001,3912.0,3911.9,9.52968603]
[1758832036727,0.001,3912.0,3911.9,4.38678603]
[1758832036931,0.54651562,3912.0,3911.6,0.002]
[1758832037141,0.1272,3911.7,3911.6,0.002]
[1758832037320,0.67271562,3911.7,3911.6,2.55849861]
[1758832037519,1.34961562,3911.7,3911.6,2.55849861]
[1758832037706,1.55272084,3911.7,3911.6,0.002]
[1758832037907,4.1091541,3911.7,3911.6,0.002]
[1758832038846,10.17467661,3911.6,3911.5,0.002]
[1758832039142,7.58663923,3911.6,3911.5,0.002]
[1758832039327,13.82024423,3911.6,3911.5,0.002]
[1758832039506,12.85747648,3911.6,3911.5,0.002]
[1758832039706,17.55947648,3911.6,3911.5,0.002]